fUST/lending_fUST_20240826
["ID","MTS","AMOUNT","RATE_DAILY","PERIOD"]
[335976506,1724649045880,-522.0,0.00012537,2]
[335976508,1724649045890,-522.0,0.00012537,2]
[335976509,1724649045899,-522.0,0.00012537,2]
[335976510,1724649045911,-8895.04439683,0.00012551,2]
[335976511,1724649045921,-7102.76084463,0.00012551,2]
[335976512,1724649045932,-3094.87417801,0.00012551,2]
[335976513,1724649045943,-500.0,0.00012556,2]
[335976514,1724649045954,-957.96,0.00012557,2]
[335976515,1724649045966,-687.27,0.00012557,2]
[335976516,1724649045975,-1154.3,0.00012557,2]
[335976517,1724649045985,-825.92,0.00012557,2]
[335976518,1724649045994,-500.0,0.00012557,2]
[335976519,1724649046004,-500.0,0.00012557,2]
[335976520,1724649046014,-500.0,0.00012557,2]
[335976521,1724649046023,-500.0,0.00012557,2]
[335976522,1724649046034,-761.21,0.00012557,2]
[335976523,1724649046045,-615.86,0.00012557,2]
[335976524,1724649046055,-416.85413768,0.00012557,2]
[335976525,1724649046064,-500.0,0.00012557,2]
[335976526,1724649046074,-500.0,0.00012557,2]
[335976527,1724649046083,-673.03,0.00012557,2]
[335976528,1724649046093,-538.19,0.00012557,2]
[335976529,1724649046103,-509.36192606,0.00012557,2]
[335976530,1724649046113,-989.16,0.00012557,2]
[335976531,1724649046124,-372.28753431,0.00012557,2]
[335976532,1724649046135,-500.0,0.00012557,2]
[335976533,1724649046147,-512.4,0.00012557,2]
[335976534,1724649046158,-825.72,0.00012557,2]
[335976535,1724649046168,-500.0,0.00012557,2]
[335976536,1724649046178,-500.0,0.00012557,2]
[335976537,1724649046189,-500.0,0.00012557,2]
[335976538,1724649046200,-500.0,0.00012557,2]
[335976539,1724649046210,-500.0,0.00012557,2]
[335976540,1724649046220,-725.5,0.00012557,2]
[335976541,1724649046231,-489.15234295,0.00012557,2]
[335976542,1724649046242,-500.0,0.00012557,2]
[335976543,1724649046253,-500.0,0.00012557,2]
[335976544,1724649046263,-500.0,0.00012557,2]
[335976545,1724649046274,-500.0,0.00012557,2]
[335976546,1724649046285,-500.0,0.00012557,2]
[335976547,1724649046295,-702.31,0.00012557,2]
[335976548,1724649046307,-543.32,0.00012557,2]
[335976549,1724649046318,-1152.29,0.00012557,2]
[335976550,1724649046329,-500.0,0.00012557,2]
[335976551,1724649046339,-500.0,0.00012557,2]
[335976552,1724649046349,-500.0,0.00012557,2]
[335976553,1724649046367,-500.0,0.00012557,2]
[335976554,1724649046379,-384.54078142,0.00012557,2]
[335976555,1724649046390,-500.0,0.00012557,2]
[335976556,1724649046401,-547.68,0.00012557,2]
[335976557,1724649046415,-618.02126839,0.00012557,2]
[335976558,1724649046426,-500.0,0.00012557,2]
[335976559,1724649046436,-1088.82,0.00012557,2]
[335976560,1724649046447,-651.93,0.00012557,2]
[335976561,1724649046458,-500.0,0.00012557,2]
[335976562,1724649046468,-500.0,0.00012557,2]
[335976563,1724649046478,-1170.43,0.00012557,2]
[335976564,1724649046487,-500.0,0.00012557,2]
[335976565,1724649046499,-500.0,0.00012557,2]
[335976566,1724649046511,-1246.65,0.00012557,2]
[335976567,1724649046525,-835.9,0.00012557,2]
[335976568,1724649046534,-1121.95,0.00012557,2]
[335976569,1724649046545,-500.0,0.00012557,2]
[335976570,1724649046556,-609.68,0.00012557,2]
[335976571,1724649046566,-654.35,0.00012557,2]
[335976572,1724649046576,-660.54,0.00012557,2]
[335976573,1724649046586,-500.0,0.00012557,2]
[335976574,1724649046599,-961.85,0.00012557,2]
[335976575,1724649046609,-1056.58,0.00012557,2]
[335976576,1724649046620,-500.0,0.00012557,2]
[335976577,1724649046631,-500.0,0.00012557,2]
[335976578,1724649046642,-555.4,0.00012557,2]
[335976579,1724649046651,-517.36,0.00012557,2]
[335976580,1724649046662,-827.46,0.00012557,2]
[335976581,1724649046671,-500.0,0.00012557,2]
[335976582,1724649046680,-500.0,0.00012557,2]
[335976583,1724649046691,-500.0,0.00012557,2]
[335976584,1724649046700,-500.0,0.00012557,2]
[335976585,1724649046712,-519.04,0.00012557,2]
[335976586,1724649046723,-500.0,0.00012557,2]
[335976587,1724649046735,-830.02,0.00012557,2]
[335976588,1724649046745,-532.77848873,0.00012557,2]
[335976589,1724649046757,-536.42,0.00012557,2]
[335976590,1724649046766,-500.0,0.00012557,2]
[335976591,1724649046780,-947.6,0.00012557,2]
[335976592,1724649046790,-1003.14,0.00012557,2]
[335976593,1724649046799,-757.26,0.00012557,2]
[335976594,1724649046809,-500.0,0.00012557,2]
[335976595,1724649046818,-501.31729394,0.00012557,2]
[335976596,1724649046827,-500.0,0.00012557,2]
[335976597,1724649046837,-227.08342233,0.00012557,2]
[335976598,1724649046846,-500.0,0.00012557,2]
[335976599,1724649046857,-500.0,0.00012557,2]
[335976600,1724649046866,-798.89,0.00012557,2]
[335976601,1724649046875,-707.52,0.00012557,2]
[335976602,1724649046885,-1168.99,0.00012557,2]
[335976603,1724649046894,-694.96,0.00012557,2]
[335976604,1724649046904,-589.78,0.00012557,2]
[335976605,1724649046914,-863.09,0.00012557,2]
[335976606,1724649046923,-640.26,0.00012557,2]
[335976607,1724649046933,-500.0,0.00012557,2]
[335976608,1724649046944,-662.41,0.00012557,2]
[335976609,1724649046954,-500.0,0.00012557,2]
[335976610,1724649046964,-500.0,0.00012557,2]
[335976611,1724649046975,-657.06,0.00012557,2]
[335976612,1724649046986,-500.0,0.00012557,2]
[335976613,1724649046997,-1098.49,0.00012557,2]
[335976614,1724649047009,-500.0,0.00012557,2]
[335976615,1724649047020,-500.0,0.00012557,2]
[335976616,1724649047032,-500.0,0.00012557,2]
[335976617,1724649047044,-240.03462011,0.00012557,2]
[335976618,1724649047055,-500.0,0.00012557,2]
[335976619,1724649047066,-433.30456367,0.00012557,2]
[335976620,1724649047075,-523.57090291,0.00012557,2]
[335976621,1724649047086,-500.0,0.00012557,2]
[335976622,1724649047098,-500.0,0.00012557,2]
[335976623,1724649047109,-555.54,0.00012557,2]
[335976624,1724649047118,-1037.99,0.00012557,2]
[335976625,1724649047129,-500.0,0.00012557,2]
[335976626,1724649047140,-500.0,0.00012557,2]
[335976627,1724649047150,-852.27,0.00012557,2]
[335976628,1724649047162,-500.0,0.00012557,2]
[335976629,1724649047173,-283.92382111,0.00012557,2]
[335976630,1724649047183,-500.0,0.00012557,2]
[335976631,1724649047192,-500.0,0.00012557,2]
[335976632,1724649047202,-500.0,0.00012557,2]
[335976633,1724649047211,-500.0,0.00012557,2]
[335976634,1724649047221,-505.85,0.00012557,2]
[335976635,1724649047231,-569.31,0.00012557,2]
[335976636,1724649047240,-500.0,0.00012557,2]
[335976637,1724649047250,-500.0,0.00012557,2]
[335976638,1724649047260,-546.22,0.00012557,2]
[335976639,1724649047269,-812.37,0.00012557,2]
[335976640,1724649047279,-504.99,0.00012557,2]
[335976641,1724649047288,-500.0,0.00012557,2]
[335976642,1724649047298,-1205.5,0.00012557,2]
[335976643,1724649047308,-500.0,0.00012557,2]
[335976644,1724649047319,-646.06,0.00012557,2]
[335976645,1724649047331,-500.0,0.00012557,2]
[335976646,1724649047343,-500.0,0.00012557,2]
[335976647,1724649047357,-500.0,0.00012557,2]
[335976648,1724649047367,-500.0,0.00012557,2]
[335976649,1724649047378,-500.0,0.00012557,2]
[335976650,1724649047389,-532.7,0.00012557,2]
[335976651,1724649047399,-1099.24,0.00012557,2]
[335976652,1724649047410,-500.0,0.00012557,2]
[335976653,1724649047420,-500.0,0.00012557,2]
[335976654,1724649047431,-1088.34,0.00012557,2]
[335976655,1724649047443,-500.0,0.00012557,2]
[335976656,1724649047455,-500.0,0.00012557,2]
[335976657,1724649047466,-500.0,0.00012557,2]
[335976658,1724649047475,-721.03,0.00012557,2]
[335976659,1724649047485,-823.46,0.00012557,2]
[335976660,1724649047494,-573.51,0.00012557,2]
[335976661,1724649047503,-520.17675558,0.00012557,2]
[335976662,1724649047513,-609.67,0.00012557,2]
[335976663,1724649047522,-500.0,0.00012557,2]
[335976664,1724649047531,-500.0,0.00012557,2]
[335976665,1724649047541,-500.0,0.00012557,2]
[335976666,1724649047550,-277.641212,0.00012557,2]
[335976667,1724649047560,-1188.03,0.00012557,2]
[335976668,1724649047570,-500.0,0.00012557,2]
[335976669,1724649047579,-991.92,0.00012557,2]
[335976670,1724649047589,-500.0,0.00012557,2]
[335976671,1724649047598,-529.81,0.00012557,2]
[335976672,1724649047607,-500.0,0.00012557,2]
[335976673,1724649047617,-11872.55,0.00012557,2]
[335976674,1724649047626,-718.89,0.00012557,2]
[335976675,1724649047636,-500.0,0.00012557,2]
[335976676,1724649047645,-500.0,0.00012557,2]
[335976677,1724649047655,-3163.64,0.00012557,2]
[335976678,1724649047723,-500.0,0.00012557,2]
[335976679,1724649047735,-907.29,0.00012557,2]
[335976680,1724649047747,-701.54,0.00012557,2]
[335976681,1724649047758,-807.87,0.00012557,2]
[335976682,1724649047769,-586.49,0.00012557,2]
[335976683,1724649047783,-500.0,0.00012557,2]
[335976684,1724649047793,-890.36,0.00012557,2]
[335976685,1724649047802,-539.88,0.00012557,2]
[335976686,1724649047812,-500.0,0.00012557,2]
[335976687,1724649047821,-4142.01,0.00012557,2]
[335976688,1724649047831,-500.0,0.00012557,2]
[335976689,1724649047841,-586.15,0.00012557,2]
[335976690,1724649047852,-707.68,0.00012557,2]
[335976691,1724649047861,-500.0,0.00012557,2]
[335976692,1724649047871,-1199.0,0.00012557,2]
[335976693,1724649047881,-500.0,0.00012557,2]
[335976694,1724649047892,-584.16,0.00012557,2]
[335976695,1724649047902,-500.0,0.00012557,2]
[335976696,1724649047913,-549.32,0.00012557,2]
[335976697,1724649047926,-500.0,0.00012557,2]
[335976698,1724649047936,-561.76,0.00012557,2]
[335976699,1724649047947,-1481.24,0.00012557,2]
[335976700,1724649047959,-896.92,0.00012557,2]
[335976701,1724649047970,-4972.42,0.00012557,2]
[335976702,1724649047980,-500.0,0.00012557,2]
[335976703,1724649047990,-685.39,0.00012557,2]
[335976704,1724649048002,-500.0,0.00012557,2]
[335976705,1724649048013,-500.0,0.00012557,2]
[335976706,1724649048022,-500.0,0.00012557,2]
[335976707,1724649048032,-991.5,0.00012557,2]
[335976708,1724649048041,-500.0,0.00012557,2]
[335976709,1724649048051,-500.0,0.00012557,2]
[335976710,1724649048060,-500.0,0.00012557,2]
[335976711,1724649048070,-500.0,0.00012557,2]
[335976712,1724649048080,-783.42,0.00012557,2]
[335976713,1724649048090,-3638.94,0.00012557,2]
[335976714,1724649048099,-500.0,0.00012557,2]
[335976715,1724649048109,-500.0,0.00012557,2]
[335976716,1724649048118,-1088.09,0.00012557,2]
[335976717,1724649048128,-1180.36,0.00012557,2]
[335976718,1724649048139,-744.15,0.00012557,2]
[335976719,1724649048150,-710.17,0.00012557,2]
[335976720,1724649048160,-1187.51,0.00012557,2]
[335976721,1724649048170,-500.0,0.00012557,2]
[335976722,1724649048179,-508.44,0.00012557,2]
[335976723,1724649048188,-500.0,0.00012557,2]
[335976724,1724649048198,-29650.33,0.00012557,2]
[335976725,1724649048208,-500.0,0.00012557,2]
[335976726,1724649048218,-981.14,0.00012557,2]
[335976727,1724649048227,-500.0,0.00012557,2]
[335976728,1724649048237,-701.87,0.00012557,2]
[335976729,1724649048248,-500.0,0.00012557,2]
[335976730,1724649048257,-500.0,0.00012557,2]
[335976731,1724649048267,-679.8,0.00012557,2]
[335976732,1724649048277,-805.49,0.00012557,2]
[335976733,1724649048287,-610.2,0.00012557,2]
[335976734,1724649048296,-500.0,0.00012557,2]
[335976735,1724649048307,-788.75,0.00012557,2]
[335976736,1724649048316,-500.0,0.00012557,2]
[335976737,1724649048325,-675.28,0.00012557,2]
[335976738,1724649048335,-593.07,0.00012557,2]
[335976739,1724649048345,-500.0,0.00012557,2]
[335976740,1724649048354,-1718.49,0.00012557,2]
[335976741,1724649048363,-1398.35,0.00012557,2]
[335976742,1724649048372,-500.0,0.00012557,2]
[335976743,1724649048382,-500.0,0.00012557,2]
[335976744,1724649048398,-520.05,0.00012557,2]
[335976745,1724649048409,-500.0,0.00012557,2]
[335976746,1724649048418,-570.42,0.00012557,2]
[335976747,1724649048427,-2491.26,0.00012557,2]
[335976748,1724649048436,-500.0,0.00012557,2]
[335976749,1724649048445,-10459.86,0.00012557,2]
[335976750,1724649048454,-500.0,0.00012557,2]
[335976751,1724649048463,-629.3,0.00012557,2]
[335976752,1724649048472,-868.7,0.00012557,2]
[335976753,1724649048482,-5482.6,0.00012557,2]
[335976754,1724649048491,-768.14,0.00012557,2]
[335976755,1724649048500,-830.31,0.00012557,2]
[335976756,1724649048509,-761.71,0.00012557,2]
[335976757,1724649048518,-550.31,0.00012557,2]
[335976758,1724649048527,-709.68,0.00012557,2]
[335976759,1724649048537,-522.0,0.00012557,2]
[335976760,1724649048545,-1224.79,0.00012557,2]
[335976761,1724649048554,-1272.23,0.00012557,2]
[335976762,1724649048564,-533.64,0.00012557,2]
[335976763,1724649048573,-500.0,0.00012557,2]
[335976764,1724649048582,-500.0,0.00012557,2]
[335976765,1724649048591,-1094.05,0.00012557,2]
[335976766,1724649048601,-552.49,0.00012557,2]
[335976767,1724649048610,-524.22,0.00012557,2]
[335976768,1724649048620,-500.0,0.00012557,2]
[335976769,1724649048629,-500.0,0.00012557,2]
[335976770,1724649048642,-500.0,0.00012557,2]
[335976771,1724649048651,-500.0,0.00012557,2]
[335976772,1724649048661,-500.0,0.00012557,2]
[335976773,1724649048670,-7499.03,0.00012557,2]
[335976774,1724649048680,-1451.82,0.00012557,2]
[335976775,1724649048689,-500.0,0.00012557,2]
[335976776,1724649048699,-693.44,0.00012557,2]
[335976777,1724649048708,-686.76,0.00012557,2]
[335976778,1724649048718,-514.44,0.00012557,2]
[335976779,1724649048727,-587.37,0.00012557,2]
[335976780,1724649048736,-500.0,0.00012557,2]
[335976781,1724649048746,-895.25,0.00012557,2]
[335976782,1724649048755,-500.0,0.00012557,2]
[335976783,1724649048765,-500.0,0.00012557,2]
[335976784,1724649048778,-500.0,0.00012557,2]
[335976785,1724649048788,-500.0,0.00012557,2]
[335976786,1724649048797,-668.09,0.00012557,2]
[335976787,1724649048806,-2456.83,0.00012557,2]
[335976788,1724649048817,-10505.82,0.00012557,2]
[335976789,1724649048826,-500.0,0.00012557,2]
[335976790,1724649048836,-827.03,0.00012557,2]
[335976791,1724649048846,-1111.15,0.00012557,2]
[335976792,1724649048857,-596.97,0.00012557,2]
[335976793,1724649048867,-500.0,0.00012557,2]
[335976794,1724649048876,-548.14,0.00012557,2]
[335976795,1724649048887,-538.39,0.00012557,2]
[335976796,1724649048896,-500.0,0.00012557,2]
[335976797,1724649048906,-500.0,0.00012557,2]
[335976798,1724649048916,-500.0,0.00012557,2]
[335976799,1724649048925,-648.35,0.00012557,2]
[335976800,1724649048935,-554.51,0.00012557,2]
[335976801,1724649048945,-500.0,0.00012557,2]
[335976802,1724649048955,-562.31,0.00012557,2]
[335976803,1724649048965,-565.43,0.00012557,2]
[335976804,1724649048975,-945.04,0.00012557,2]
[335976805,1724649048984,-503.52,0.00012557,2]
[335976806,1724649048993,-500.0,0.00012557,2]
[335976807,1724649049003,-850.29,0.00012557,2]
[335976808,1724649049012,-298.46820211,0.00012557,2]
[335976809,1724649049022,-500.0,0.00012557,2]
[335976810,1724649049032,-2819.77,0.00012557,2]
[335976811,1724649049042,-865.47,0.00012557,2]
[335976812,1724649049051,-500.0,0.00012557,2]
[335976813,1724649049060,-645.28,0.00012557,2]
[335976814,1724649049070,-500.0,0.00012557,2]
[335976815,1724649049079,-500.0,0.00012557,2]
[335976816,1724649049089,-699.5,0.00012557,2]
[335976817,1724649049099,-670.07,0.00012557,2]
[335976818,1724649049109,-1103.64,0.00012557,2]
[335976819,1724649049119,-500.0,0.00012557,2]
[335976820,1724649049128,-565.55,0.00012557,2]
[335976821,1724649049137,-27875.82946941,0.00012558,5]
[335976822,1724649049147,-500.0,0.00012558,2]
[335976823,1724649049157,-500.0,0.00012558,2]
[335976824,1724649049166,-500.0,0.00012558,2]
[335976825,1724649049175,-500.0,0.00012558,2]
[335976826,1724649049186,-582.58,0.00012558,2]
[335976827,1724649049195,-500.0,0.00012558,2]
[335976828,1724649049204,-647.39,0.00012558,2]
[335976829,1724649049214,-500.0,0.00012558,2]
[335976830,1724649049223,-500.0,0.00012558,2]
[335976831,1724649049233,-500.0,0.00012558,2]
[335976832,1724649049242,-546.62,0.00012558,2]
[335976833,1724649049251,-500.0,0.00012558,2]
[335976834,1724649049261,-500.0,0.00012558,2]
[335976835,1724649049271,-500.0,0.00012558,2]
[335976836,1724649049280,-500.0,0.00012558,2]
[335976837,1724649049290,-500.0,0.00012558,2]
[335976838,1724649049300,-500.0,0.00012558,2]
[335976839,1724649049309,-568.82,0.00012558,2]
[335976840,1724649049318,-500.0,0.00012558,2]
[335976841,1724649049327,-500.0,0.00012558,2]
[335976842,1724649049337,-500.0,0.00012558,2]
[335976843,1724649049346,-500.0,0.00012558,2]
[335976844,1724649049356,-500.0,0.00012558,2]
[335976845,1724649049366,-500.0,0.00012558,2]
[335976846,1724649049376,-500.0,0.00012558,2]
[335976847,1724649049385,-500.0,0.00012558,2]
[335976848,1724649049395,-500.0,0.00012558,2]
[335976849,1724649049405,-550.38,0.00012558,2]
[335976850,1724649049415,-500.0,0.00012558,2]
[335976851,1724649049426,-500.0,0.00012558,2]
[335976852,1724649049435,-500.0,0.00012558,2]
[335976853,1724649049445,-753.93,0.00012558,2]
[335976854,1724649049454,-500.0,0.00012558,2]
[335976855,1724649049464,-500.0,0.00012558,2]
[335976856,1724649049473,-824.25,0.00012558,2]
[335976857,1724649049482,-500.0,0.00012558,2]
[335976858,1724649049491,-500.0,0.00012558,2]
[335976859,1724649049501,-500.0,0.00012558,2]
[335976860,1724649049510,-519.23,0.00012558,2]
[335976861,1724649049520,-500.0,0.00012558,2]
[335976862,1724649049529,-528.11,0.00012558,2]
[335976863,1724649049538,-379.57396527,0.00012558,2]
[335976864,1724649049548,-500.0,0.00012558,2]
[335976865,1724649049558,-500.0,0.00012558,2]
[335976866,1724649049568,-500.0,0.00012558,2]
[335976867,1724649049577,-603.47,0.00012558,2]
[335976868,1724649049587,-516.57926988,0.00012558,2]
[335976869,1724649049597,-731.56,0.00012558,2]
[335976870,1724649049607,-500.0,0.00012558,2]
[335976871,1724649049619,-500.0,0.00012558,2]
[335976872,1724649049629,-523.12602521,0.00012558,2]
[335976873,1724649049639,-591.24,0.00012558,2]
[335976874,1724649049648,-867.45,0.00012558,2]
[335976875,1724649049658,-552.71,0.00012558,2]
[335976876,1724649049668,-785.63,0.00012558,2]
[335976877,1724649049677,-500.0,0.00012558,2]
[335976878,1724649049687,-500.0,0.00012558,2]
[335976879,1724649049696,-500.0,0.00012558,2]
[335976880,1724649049705,-744.49,0.00012558,2]
[335976881,1724649049716,-500.0,0.00012558,2]
[335976882,1724649049726,-500.0,0.00012558,2]
[335976883,1724649049736,-711.36,0.00012558,2]
[335976884,1724649049746,-500.0,0.00012558,2]
[335976885,1724649049758,-500.0,0.00012558,2]
[335976886,1724649049767,-500.0,0.00012558,2]
[335976887,1724649049780,-500.0,0.00012558,2]
[335976888,1724649049791,-671.22,0.00012558,2]
[335976889,1724649049801,-500.0,0.00012558,2]
[335976890,1724649049812,-500.0,0.00012558,2]
[335976891,1724649049823,-689.91,0.00012558,2]
[335976892,1724649049833,-500.0,0.00012558,2]
[335976893,1724649049844,-842.96,0.00012558,2]
[335976894,1724649049855,-1345.74,0.00012558,2]
[335976895,1724649049867,-500.0,0.00012558,2]
[335976896,1724649049878,-929.31,0.00012558,2]
[335976897,1724649049890,-500.0,0.00012558,2]
[335976898,1724649049901,-686.14,0.00012558,2]
[335976899,1724649049912,-806.75,0.00012558,2]
[335976900,1724649049922,-652.57,0.00012558,2]
[335976901,1724649049934,-692.43,0.00012558,2]
[335976902,1724649049944,-762.28,0.00012558,2]
[335976903,1724649049955,-500.0,0.00012558,2]
[335976904,1724649049967,-500.0,0.00012558,2]
[335976905,1724649049979,-500.0,0.00012558,2]
[335976906,1724649049991,-500.0,0.00012558,2]
[335976907,1724649050001,-500.0,0.00012558,2]
[335976908,1724649050012,-500.0,0.00012558,2]
[335976909,1724649050022,-500.0,0.00012559,2]
[335976910,1724649050032,-500.0,0.00012559,2]
[335976911,1724649050041,-285.0,0.00012561,2]
[335976912,1724649050053,-285.0,0.00012561,2]
[335976913,1724649050063,-285.0,0.00012561,2]
[335976914,1724649050075,-285.0,0.00012561,2]
[335976915,1724649050085,-285.0,0.00012561,2]
[335976916,1724649050095,-285.0,0.00012561,2]
[335976917,1724649050106,-285.0,0.00012561,2]
[335976918,1724649050116,-285.0,0.00012561,2]
[335976919,1724649050126,-285.0,0.00012561,2]
[335976920,1724649050136,-285.0,0.00012561,2]
[335976921,1724649050146,-285.0,0.00012561,2]
[335976922,1724649050156,-285.0,0.00012561,2]
[335976923,1724649050168,-285.0,0.00012561,2]
[335976924,1724649050180,-285.0,0.00012561,2]
[335976925,1724649050190,-285.0,0.00012561,2]
[335976926,1724649050200,-285.0,0.00012561,2]
[335976927,1724649050209,-285.0,0.00012561,2]
[335976928,1724649050219,-523.0,0.00012561,2]
[335976929,1724649050229,-523.0,0.00012561,2]
[335976930,1724649050238,-523.0,0.00012561,2]
[335976931,1724649050248,-523.0,0.00012561,2]
[335976932,1724649050257,-523.0,0.00012561,2]
[335976933,1724649050268,-523.0,0.00012561,2]
[335976934,1724649050277,-523.0,0.00012561,2]
[335976935,1724649050286,-523.0,0.00012561,2]
[335976936,1724649050296,-523.0,0.00012561,2]
[335976937,1724649050306,-523.0,0.00012561,2]
[335976938,1724649050315,-523.0,0.00012561,2]
[335976939,1724649050324,-523.0,0.00012561,2]
[335976940,1724649050334,-523.0,0.00012561,2]
[335976941,1724649050343,-523.0,0.00012561,2]
[335976942,1724649050353,-523.0,0.00012561,2]
[335976943,1724649050363,-523.0,0.00012561,2]
[335976944,1724649050373,-523.0,0.00012561,2]
[335976945,1724649050384,-285.0,0.00012561,2]
[335976946,1724649050395,-285.0,0.00012561,2]
[335976947,1724649050406,-285.0,0.00012561,2]
[335976948,1724649050416,-285.0,0.00012561,2]
[335976949,1724649050427,-285.0,0.00012561,2]
[335976950,1724649050438,-285.0,0.00012561,2]
[335976951,1724649050450,-285.0,0.00012561,2]
[335976952,1724649050461,-285.0,0.00012561,2]
[335976953,1724649050472,-285.0,0.00012561,2]
[335976954,1724649050481,-285.0,0.00012561,2]
[335976955,1724649050490,-285.0,0.00012561,2]
[335976956,1724649050499,-285.0,0.00012561,2]
[335976957,1724649050510,-285.0,0.00012561,2]
[335976958,1724649050519,-285.0,0.00012561,2]
[335976959,1724649050529,-523.0,0.00012561,2]
[335976960,1724649050539,-523.0,0.00012561,2]
[335976961,1724649050548,-523.0,0.00012561,2]
[335976962,1724649050558,-523.0,0.00012561,2]
[335976963,1724649050567,-523.0,0.00012561,2]
[335976964,1724649050577,-523.0,0.00012561,2]
[335976965,1724649050588,-523.0,0.00012561,2]
[335976966,1724649050600,-523.0,0.00012561,2]
[335976967,1724649050612,-523.0,0.00012561,2]
[335976968,1724649050623,-523.0,0.00012561,2]
[335976969,1724649050634,-523.0,0.00012561,2]
[335976970,1724649050644,-523.0,0.00012561,2]
[335976971,1724649050656,-523.0,0.00012561,2]
[335976972,1724649050666,-523.0,0.00012561,2]
[335976973,1724649050676,-285.0,0.00012561,2]
[335976974,1724649050686,-285.0,0.00012561,2]
[335976975,1724649050695,-285.0,0.00012561,2]
[335976976,1724649050704,-285.0,0.00012561,2]
[335976977,1724649050714,-285.0,0.00012561,2]
[335976978,1724649050724,-285.0,0.00012561,2]
[335976979,1724649050734,-285.0,0.00012561,2]
[335976980,1724649050744,-285.0,0.00012561,2]
[335976981,1724649050754,-285.0,0.00012561,2]
[335976982,1724649050763,-285.0,0.00012561,2]
[335976983,1724649050773,-285.0,0.00012561,2]
[335976984,1724649050786,-285.0,0.00012561,2]
[335976985,1724649050795,-285.0,0.00012561,2]
[335976986,1724649050804,-285.0,0.00012561,2]
[335976987,1724649050814,-523.0,0.00012561,2]
[335976988,1724649050824,-523.0,0.00012561,2]
[335976989,1724649050833,-523.0,0.00012561,2]
[335976990,1724649050843,-523.0,0.00012561,2]
[335976991,1724649050852,-523.0,0.00012561,2]
[335976992,1724649050864,-523.0,0.00012561,2]
[335976993,1724649050873,-523.0,0.00012561,2]
[335976994,1724649050883,-523.0,0.00012561,2]
[335976995,1724649050893,-523.0,0.00012561,2]
[335976996,1724649050903,-523.0,0.00012561,2]
[335976997,1724649050912,-523.0,0.00012561,2]
[335976998,1724649050921,-523.0,0.00012561,2]
[335976999,1724649050930,-523.0,0.00012561,2]
[335977000,1724649050940,-523.0,0.00012561,2]
[335977001,1724649050949,-284.0,0.00012561,2]
[335977002,1724649050959,-284.0,0.00012561,2]
[335977003,1724649050969,-284.0,0.00012561,2]
[335977004,1724649050980,-284.0,0.00012561,2]
[335977005,1724649050990,-284.0,0.00012561,2]
[335977006,1724649051000,-284.0,0.00012561,2]